[Event "Titled Tuesday Blitz March 01 Early 2022"]
[White "Spyropoulos, Nikolaos"]
[Black "Van den Dikkenberg, Erik"]
[WhiteFideId "4298977"]
[BlackFideId "1005880"]
[WhiteElo "2159"]
[BlackElo "2118"]
[Result "1-0"]
[Round "04"]
[TimeControl "180+1"]
[Date "2022.03.01"]
[WhiteClock "0:00:07"]
[BlackClock "0:00:14"]

1. d4 {[%clk 0:02:50]}  Nf6 {[%clk 0:02:59]} 2. Nf3 {[%clk 0:02:49]}  g6 {[%clk 0:02:59]} 3. Bg5 {[%clk 0:02:46]}  Bg7 {[%clk 0:02:59]} 4. Nbd2 {[%clk 0:02:35]}  O-O {[%clk 0:02:59]} 5. e3 {[%clk 0:02:35]}  d6 {[%clk 0:02:59]} 6. Bc4 {[%clk 0:02:34]}  c6 {[%clk 0:02:58]} 7. O-O {[%clk 0:02:34]}  b5 {[%clk 0:02:58]} 8. Bb3 {[%clk 0:02:34]}  a5 {[%clk 0:02:59]} 9. a4 {[%clk 0:02:34]}  b4 {[%clk 0:02:59]} 10. Re1 {[%clk 0:02:34]}  Nbd7 {[%clk 0:02:58]} 11. e4 {[%clk 0:02:34]}  e5 {[%clk 0:02:54]} 12. dxe5 {[%clk 0:02:26]}  dxe5 {[%clk 0:02:54]} 13. Nc4 {[%clk 0:02:25]}  Qc7 {[%clk 0:02:48]} 14. Qd6 {[%clk 0:02:05]}  Qxd6 {[%clk 0:02:45]} 15. Nxd6 {[%clk 0:02:06]}  h6 {[%clk 0:02:35]} 16. Bh4 {[%clk 0:02:03]}  g5 {[%clk 0:02:21]} 17. Bg3 {[%clk 0:02:01]}  Nh5 {[%clk 0:02:21]} 18. Rad1 {[%clk 0:01:31]}  Nxg3 {[%clk 0:02:17]} 19. hxg3 {[%clk 0:01:32]}  Nc5 {[%clk 0:02:15]} 20. Nxc8 {[%clk 0:01:25]}  Raxc8 {[%clk 0:02:12]} 21. Nd2 {[%clk 0:01:24]}  Rfd8 {[%clk 0:02:07]} 22. f3 {[%clk 0:00:58]}  Ne6 {[%clk 0:01:59]} 23. Bxe6 {[%clk 0:00:56]}  fxe6 {[%clk 0:02:00]} 24. Nc4 {[%clk 0:00:57]}  Rd4 {[%clk 0:01:45]} 25. Rxd4 {[%clk 0:00:50]}  exd4 {[%clk 0:01:44]} 26. e5 {[%clk 0:00:47]}  c5 {[%clk 0:01:35]} 27. b3 {[%clk 0:00:42]}  Rf8 {[%clk 0:01:23]} 28. Kf2 {[%clk 0:00:40]}  Rf5 {[%clk 0:01:21]} 29. g4 {[%clk 0:00:38]}  Rf4 {[%clk 0:01:06]} 30. Nxa5 {[%clk 0:00:33]}  d3 {[%clk 0:01:05]} 31. cxd3 {[%clk 0:00:33]}  Rd4 {[%clk 0:01:06]} 32. Re3 {[%clk 0:00:32]}  Rd5 {[%clk 0:00:46]} 33. Nc4 {[%clk 0:00:31]}  Kh7 {[%clk 0:00:43]} 34. a5 {[%clk 0:00:23]}  Rd7 {[%clk 0:00:42]} 35. g3 {[%clk 0:00:18]}  Kg6 {[%clk 0:00:41]} 36. f4 {[%clk 0:00:18]}  Rf7 {[%clk 0:00:40]} 37. Kf3 {[%clk 0:00:17]}  h5 {[%clk 0:00:39]} 38. gxh5+ {[%clk 0:00:17]}  Kxh5 {[%clk 0:00:39]} 39. Re2 {[%clk 0:00:17]}  g4+ {[%clk 0:00:31]} 40. Ke4 {[%clk 0:00:17]}  Kg6 {[%clk 0:00:32]} 41. Rh2 {[%clk 0:00:17]}  Rd7 {[%clk 0:00:31]} 42. Rh4 {[%clk 0:00:15]}  Rd4+ {[%clk 0:00:30]} 43. Ke3 {[%clk 0:00:09]}  Kf5 {[%clk 0:00:20]} 44. Nd6+ {[%clk 0:00:09]}  Kg6 {[%clk 0:00:14]} 45. Rxg4+ {[%clk 0:00:07]}  Kh7 {[%clk 0:00:14]} 46. Rxg7+ {[%clk 0:00:07]}  Kxg7 {[%clk 0:00:14]} 47. a6 {[%clk 0:00:07]} 1-0


[Site "https://www.chess.com"]

[Event "Titled Tuesday Blitz March 01 Early 2022"]
[White "Suder, Jakub"]
[Black "Zia, Tahsin Tajwar"]
[WhiteFideId "1195310"]
[BlackFideId "10211888"]
[WhiteElo "2058"]
[BlackElo "1800"]
[Result "1-0"]
[Round "04"]
[TimeControl "180+1"]
[Date "2022.03.01"]
[WhiteClock "0:02:22"]
[BlackClock "0:00:03"]

1. d4 {[%clk 0:03:00]}  Nf6 {[%clk 0:02:28]} 2. c4 {[%clk 0:02:58]}  e6 {[%clk 0:02:22]} 3. Nc3 {[%clk 0:02:58]}  Bb4 {[%clk 0:02:19]} 4. f3 {[%clk 0:02:58]}  c5 {[%clk 0:02:07]} 5. d5 {[%clk 0:02:58]}  O-O {[%clk 0:02:01]} 6. e4 {[%clk 0:02:58]}  b5 {[%clk 0:01:57]} 7. e5 {[%clk 0:02:57]}  exd5 {[%clk 0:01:51]} 8. exf6 {[%clk 0:02:55]}  d4 {[%clk 0:01:49]} 9. a3 {[%clk 0:02:54]}  Ba5 {[%clk 0:01:40]} 10. fxg7 {[%clk 0:02:49]}  Re8+ {[%clk 0:01:35]} 11. Kf2 {[%clk 0:02:50]}  dxc3 {[%clk 0:01:33]} 12. Bd3 {[%clk 0:02:46]}  bxc4 {[%clk 0:01:06]} 13. Be4 {[%clk 0:02:46]}  d5 {[%clk 0:00:57]} 14. Qxd5 {[%clk 0:02:40]}  Qxd5 {[%clk 0:00:52]} 15. Bxd5 {[%clk 0:02:41]}  cxb2 {[%clk 0:00:33]} 16. Bxb2 {[%clk 0:02:42]}  c3 {[%clk 0:00:34]} 17. Bc1 {[%clk 0:02:42]}  c2 {[%clk 0:00:21]} 18. Ne2 {[%clk 0:02:32]}  Bf5 {[%clk 0:00:14]} 19. Bxa8 {[%clk 0:02:29]}  Bd3 {[%clk 0:00:10]} 20. Nf4 {[%clk 0:02:26]}  Ba6 {[%clk 0:00:05]} 21. Be4 {[%clk 0:02:23]}  Bc3 {[%clk 0:00:04]} 22. Ra2 {[%clk 0:02:23]}  Bd4+ {[%clk 0:00:04]} 23. Be3 {[%clk 0:02:22]}  Nc6 {[%clk 0:00:04]} 24. Rxc2 {[%clk 0:02:22]}  Bxe3+ {[%clk 0:00:03]} 25. Kxe3 {[%clk 0:02:22]}  f5 {[%clk 0:00:03]} 26. Rxc5 {[%clk 0:02:22]} 1-0


[Site "https://www.chess.com"]

[Event "Titled Tuesday Blitz March 01 Early 2022"]
[White "Szpar, Milosz"]
[Black "Omelja, Artem"]
[WhiteFideId "1184989"]
[BlackFideId "14119846"]
[WhiteElo "2447"]
[BlackElo "2418"]
[Result "0-1"]
[Round "04"]
[TimeControl "180+1"]
[Date "2022.03.01"]
[WhiteClock "0:00:11"]
[BlackClock "0:00:04"]

1. e4 {[%clk 0:03:00]}  c5 {[%clk 0:02:59]} 2. Nf3 {[%clk 0:02:59]}  e6 {[%clk 0:02:58]} 3. d4 {[%clk 0:02:58]}  cxd4 {[%clk 0:02:58]} 4. Nxd4 {[%clk 0:02:58]}  a6 {[%clk 0:02:59]} 5. Bd3 {[%clk 0:02:54]}  Qc7 {[%clk 0:02:55]} 6. O-O {[%clk 0:02:50]}  Nf6 {[%clk 0:02:54]} 7. Qe2 {[%clk 0:02:49]}  d6 {[%clk 0:02:52]} 8. c4 {[%clk 0:02:43]}  Nbd7 {[%clk 0:02:48]} 9. Nc3 {[%clk 0:02:06]}  b6 {[%clk 0:02:43]} 10. Bd2 {[%clk 0:02:04]}  Bb7 {[%clk 0:02:43]} 11. Kh1 {[%clk 0:02:02]}  Ne5 {[%clk 0:02:12]} 12. f4 {[%clk 0:01:56]}  Nxd3 {[%clk 0:02:11]} 13. Qxd3 {[%clk 0:01:57]}  Rc8 {[%clk 0:01:58]} 14. b3 {[%clk 0:01:57]}  Be7 {[%clk 0:01:57]} 15. f5 {[%clk 0:01:58]}  e5 {[%clk 0:01:57]} 16. Nc2 {[%clk 0:01:57]}  O-O {[%clk 0:01:55]} 17. Bg5 {[%clk 0:01:57]}  Ng4 {[%clk 0:01:23]} 18. Bd2 {[%clk 0:01:33]}  Nf6 {[%clk 0:01:19]} 19. h3 {[%clk 0:01:28]}  h6 {[%clk 0:01:15]} 20. g4 {[%clk 0:01:24]}  b5 {[%clk 0:00:53]} 21. Ne3 {[%clk 0:01:23]}  bxc4 {[%clk 0:00:45]} 22. bxc4 {[%clk 0:01:24]}  Qc6 {[%clk 0:00:41]} 23. Ncd5 {[%clk 0:01:19]}  Nxd5 {[%clk 0:00:35]} 24. Nxd5 {[%clk 0:01:19]}  Bf6 {[%clk 0:00:17]} 25. Rac1 {[%clk 0:01:17]}  Rfe8 {[%clk 0:00:14]} 26. Rg1 {[%clk 0:01:12]}  Qc5 {[%clk 0:00:06]} 27. Nxf6+ {[%clk 0:01:07]}  gxf6 {[%clk 0:00:06]} 28. Bxh6 {[%clk 0:01:08]}  Qd4 {[%clk 0:00:06]} 29. Qxd4 {[%clk 0:01:02]}  exd4 {[%clk 0:00:07]} 30. g5 {[%clk 0:01:03]}  Rxe4 {[%clk 0:00:05]} 31. Kh2 {[%clk 0:00:55]}  Kh7 {[%clk 0:00:05]} 32. Kg3 {[%clk 0:00:51]}  Re3+ {[%clk 0:00:05]} 33. Kf2 {[%clk 0:00:49]}  Rce8 {[%clk 0:00:05]} 34. Rg3 {[%clk 0:00:37]}  Re2+ {[%clk 0:00:04]} 35. Kg1 {[%clk 0:00:38]}  Rxa2 {[%clk 0:00:04]} 36. Rd1 {[%clk 0:00:23]}  Ree2 {[%clk 0:00:04]} 37. Rb1 {[%clk 0:00:10]}  Be4 {[%clk 0:00:02]} 38. g6+ {[%clk 0:00:09]}  Kxh6 {[%clk 0:00:01]} 39. g7 {[%clk 0:00:09]}  Rg2+ {[%clk 0:00:02]} 40. Rxg2 {[%clk 0:00:09]}  Rxg2+ {[%clk 0:00:03]} 41. Kf1 {[%clk 0:00:10]}  Rxg7 {[%clk 0:00:03]} 42. Re1 {[%clk 0:00:11]}  Bxf5 {[%clk 0:00:04]} 0-1


[Site "https://www.chess.com"]

[Event "Titled Tuesday Blitz March 01 Early 2022"]
[White "Ter-Sahakyan, Samvel"]
[Black "Murzin, Volodar"]
[WhiteFideId "13302531"]
[BlackFideId "44155573"]
[WhiteElo "2592"]
[BlackElo "2585"]
[Result "1/2-1/2"]
[Round "04"]
[TimeControl "180+1"]
[Date "2022.03.01"]
[WhiteClock "0:00:10"]
[BlackClock "0:00:08"]

1. e4 {[%clk 0:02:59]}  c6 {[%clk 0:02:58]} 2. d4 {[%clk 0:02:55]}  d5 {[%clk 0:02:58]} 3. exd5 {[%clk 0:02:56]}  cxd5 {[%clk 0:02:59]} 4. Bd3 {[%clk 0:02:53]}  Nc6 {[%clk 0:02:59]} 5. Nf3 {[%clk 0:02:51]}  Bg4 {[%clk 0:02:57]} 6. c3 {[%clk 0:02:50]}  Nf6 {[%clk 0:02:53]} 7. Qb3 {[%clk 0:02:46]}  Qb6 {[%clk 0:02:32]} 8. Ne5 {[%clk 0:01:50]}  e6 {[%clk 0:01:59]} 9. Qxb6 {[%clk 0:01:24]}  axb6 {[%clk 0:01:57]} 10. Nxg4 {[%clk 0:01:22]}  Nxg4 {[%clk 0:01:56]} 11. Nd2 {[%clk 0:01:20]}  Bd6 {[%clk 0:01:55]} 12. Nf3 {[%clk 0:01:20]}  O-O {[%clk 0:01:53]} 13. O-O {[%clk 0:01:19]}  Nf6 {[%clk 0:01:51]} 14. Re1 {[%clk 0:01:18]}  Ra5 {[%clk 0:01:50]} 15. a3 {[%clk 0:01:17]}  Rc8 {[%clk 0:01:46]} 16. Bd2 {[%clk 0:01:00]}  Raa8 {[%clk 0:01:43]} 17. Re2 {[%clk 0:00:55]}  Na5 {[%clk 0:01:39]} 18. Rae1 {[%clk 0:00:54]}  Nc4 {[%clk 0:01:27]} 19. Bc1 {[%clk 0:00:54]}  h6 {[%clk 0:01:17]} 20. g3 {[%clk 0:00:51]}  Nd7 {[%clk 0:01:10]} 21. Kg2 {[%clk 0:00:49]}  Nb8 {[%clk 0:01:08]} 22. h4 {[%clk 0:00:47]}  Nc6 {[%clk 0:01:07]} 23. g4 {[%clk 0:00:42]}  N6a5 {[%clk 0:01:05]} 24. g5 {[%clk 0:00:38]}  hxg5 {[%clk 0:00:24]} 25. Bxg5 {[%clk 0:00:38]}  Nc6 {[%clk 0:00:14]} 26. h5 {[%clk 0:00:36]}  Be7 {[%clk 0:00:13]} 27. Bc1 {[%clk 0:00:34]}  Bf6 {[%clk 0:00:14]} 28. h6 {[%clk 0:00:28]}  g6 {[%clk 0:00:14]} 29. Nh2 {[%clk 0:00:26]}  Kh7 {[%clk 0:00:14]} 30. Ng4 {[%clk 0:00:26]}  Bh8 {[%clk 0:00:14]} 31. Bg5 {[%clk 0:00:24]}  Nd6 {[%clk 0:00:15]} 32. Re3 {[%clk 0:00:15]}  Nf5 {[%clk 0:00:14]} 33. Rf3 {[%clk 0:00:16]}  Na5 {[%clk 0:00:11]} 34. Re2 {[%clk 0:00:12]}  Nc4 {[%clk 0:00:10]} 35. Kh3 {[%clk 0:00:12]}  Ncd6 {[%clk 0:00:10]} 36. Kg2 {[%clk 0:00:09]}  Nc4 {[%clk 0:00:07]} 37. Kh3 {[%clk 0:00:10]}  Ncd6 {[%clk 0:00:08]} 38. Kg2 {[%clk 0:00:10]}  Nc4 {[%clk 0:00:08]} 1/2-1/2


[Site "https://www.chess.com"]

[Event "Titled Tuesday Blitz March 01 Early 2022"]
[White "Topalov, Aleksandar"]
[Black "Gabdrakhmanov, Azat"]
[WhiteFideId "925659"]
[BlackFideId "34189197"]
[WhiteElo "2098"]
[BlackElo "2279"]
[Result "0-1"]
[Round "04"]
[TimeControl "180+1"]
[Date "2022.03.01"]
[WhiteClock "0:00:04"]
[BlackClock "0:00:15"]

1. b3 {[%clk 0:03:00]}  b6 {[%clk 0:02:58]} 2. Bb2 {[%clk 0:03:01]}  Bb7 {[%clk 0:02:58]} 3. Nf3 {[%clk 0:03:00]}  e6 {[%clk 0:02:59]} 4. g3 {[%clk 0:03:00]}  Nf6 {[%clk 0:02:58]} 5. Bg2 {[%clk 0:03:01]}  Be7 {[%clk 0:02:59]} 6. O-O {[%clk 0:03:01]}  c5 {[%clk 0:02:59]} 7. d3 {[%clk 0:02:59]}  d5 {[%clk 0:02:58]} 8. Ne5 {[%clk 0:02:54]}  O-O {[%clk 0:02:57]} 9. Nd2 {[%clk 0:02:53]}  Nc6 {[%clk 0:02:56]} 10. Nxc6 {[%clk 0:02:53]}  Bxc6 {[%clk 0:02:56]} 11. e4 {[%clk 0:02:51]}  dxe4 {[%clk 0:02:53]} 12. dxe4 {[%clk 0:02:51]}  Qc7 {[%clk 0:02:49]} 13. Qe2 {[%clk 0:02:49]}  Rad8 {[%clk 0:02:49]} 14. Rfd1 {[%clk 0:02:39]}  Nd7 {[%clk 0:02:48]} 15. a4 {[%clk 0:02:31]}  Bf6 {[%clk 0:02:48]} 16. Bxf6 {[%clk 0:02:21]}  Nxf6 {[%clk 0:02:46]} 17. Nc4 {[%clk 0:02:10]}  h6 {[%clk 0:01:57]} 18. f3 {[%clk 0:01:46]}  Rxd1+ {[%clk 0:01:49]} 19. Rxd1 {[%clk 0:01:45]}  Rd8 {[%clk 0:01:50]} 20. Rd2 {[%clk 0:01:38]}  Rd4 {[%clk 0:01:31]} 21. c3 {[%clk 0:01:34]}  Rd7 {[%clk 0:01:30]} 22. Qd1 {[%clk 0:01:33]}  Rxd2 {[%clk 0:01:30]} 23. Qxd2 {[%clk 0:01:33]}  Ne8 {[%clk 0:01:31]} 24. Bf1 {[%clk 0:01:22]}  Kf8 {[%clk 0:01:29]} 25. Qd3 {[%clk 0:01:13]}  Ke7 {[%clk 0:01:28]} 26. Kf2 {[%clk 0:01:10]}  Bb7 {[%clk 0:01:24]} 27. Be2 {[%clk 0:01:00]}  e5 {[%clk 0:01:22]} 28. Ne3 {[%clk 0:00:57]}  g6 {[%clk 0:01:19]} 29. Qd2 {[%clk 0:00:46]}  h5 {[%clk 0:01:18]} 30. Bc4 {[%clk 0:00:45]}  Nd6 {[%clk 0:01:16]} 31. Bd5 {[%clk 0:00:45]}  Bc8 {[%clk 0:01:06]} 32. Nc2 {[%clk 0:00:39]}  Ne8 {[%clk 0:00:31]} 33. Qg5+ {[%clk 0:00:34]}  Kf8 {[%clk 0:00:32]} 34. Qh6+ {[%clk 0:00:35]}  Ke7 {[%clk 0:00:32]} 35. Ne3 {[%clk 0:00:31]}  Nf6 {[%clk 0:00:29]} 36. Qg5 {[%clk 0:00:20]}  Be6 {[%clk 0:00:26]} 37. Bxe6 {[%clk 0:00:16]}  Kxe6 {[%clk 0:00:26]} 38. Nc4 {[%clk 0:00:12]}  a6 {[%clk 0:00:22]} 39. Ke3 {[%clk 0:00:09]}  b5 {[%clk 0:00:21]} 40. f4 {[%clk 0:00:08]}  bxc4 {[%clk 0:00:18]} 41. bxc4 {[%clk 0:00:06]}  Ng4+ {[%clk 0:00:16]} 42. Kf3 {[%clk 0:00:04]}  Qd6 {[%clk 0:00:15]} 0-1


[Site "https://www.chess.com"]

[Event "Titled Tuesday Blitz March 01 Early 2022"]
[White "Tsvetkov, Andrey"]
[Black "Karas, Marek"]
[WhiteFideId "34139360"]
[BlackFideId "14928558"]
[WhiteElo "2280"]
[BlackElo "2270"]
[Result "1-0"]
[Round "04"]
[TimeControl "180+1"]
[Date "2022.03.01"]
[WhiteClock "0:01:10"]
[BlackClock "0:01:41"]

1. d4 {[%clk 0:03:00]}  Nf6 {[%clk 0:02:59]} 2. c4 {[%clk 0:03:01]}  e6 {[%clk 0:02:58]} 3. Nc3 {[%clk 0:03:01]}  d5 {[%clk 0:02:56]} 4. Nf3 {[%clk 0:03:01]}  c5 {[%clk 0:02:57]} 5. cxd5 {[%clk 0:03:00]}  Nxd5 {[%clk 0:02:57]} 6. e4 {[%clk 0:02:51]}  Nxc3 {[%clk 0:02:56]} 7. bxc3 {[%clk 0:02:52]}  cxd4 {[%clk 0:02:56]} 8. cxd4 {[%clk 0:02:53]}  Bb4+ {[%clk 0:02:56]} 9. Bd2 {[%clk 0:02:53]}  Bxd2+ {[%clk 0:02:57]} 10. Qxd2 {[%clk 0:02:54]}  O-O {[%clk 0:02:57]} 11. Bc4 {[%clk 0:02:54]}  Nd7 {[%clk 0:02:57]} 12. O-O {[%clk 0:02:55]}  b6 {[%clk 0:02:58]} 13. Rad1 {[%clk 0:02:55]}  Bb7 {[%clk 0:02:58]} 14. Rfe1 {[%clk 0:02:54]}  Nf6 {[%clk 0:02:57]} 15. Qf4 {[%clk 0:02:52]}  h6 {[%clk 0:02:57]} 16. Bb3 {[%clk 0:02:52]}  Rc8 {[%clk 0:02:55]} 17. d5 {[%clk 0:02:51]}  exd5 {[%clk 0:02:55]} 18. e5 {[%clk 0:02:51]}  Nd7 {[%clk 0:02:51]} 19. Bxd5 {[%clk 0:02:36]}  Bxd5 {[%clk 0:02:52]} 20. Rxd5 {[%clk 0:02:36]}  Qe7 {[%clk 0:02:50]} 21. Nd4 {[%clk 0:02:33]}  Nc5 {[%clk 0:02:40]} 22. Nf5 {[%clk 0:02:29]}  Qg5 {[%clk 0:02:25]} 23. Qxg5 {[%clk 0:02:08]}  hxg5 {[%clk 0:02:26]} 24. Ne7+ {[%clk 0:02:09]}  Kh7 {[%clk 0:02:27]} 25. Nxc8 {[%clk 0:02:10]}  Rxc8 {[%clk 0:02:28]} 26. h3 {[%clk 0:02:05]}  Rc7 {[%clk 0:02:25]} 27. Red1 {[%clk 0:02:03]}  Re7 {[%clk 0:02:22]} 28. g3 {[%clk 0:01:57]}  f6 {[%clk 0:02:14]} 29. exf6 {[%clk 0:01:55]}  gxf6 {[%clk 0:02:15]} 30. Kg2 {[%clk 0:01:54]}  Kg6 {[%clk 0:02:10]} 31. R1d2 {[%clk 0:01:49]}  Re8 {[%clk 0:02:03]} 32. Rd8 {[%clk 0:01:45]}  Re7 {[%clk 0:02:04]} 33. Rg8+ {[%clk 0:01:41]}  Kf7 {[%clk 0:02:01]} 34. Rdd8 {[%clk 0:01:41]}  Re2 {[%clk 0:01:59]} 35. Rdf8+ {[%clk 0:01:40]}  Ke6 {[%clk 0:01:55]} 36. Re8+ {[%clk 0:01:38]}  Kf7 {[%clk 0:01:55]} 37. Rxe2 {[%clk 0:01:16]}  Kxg8 {[%clk 0:01:55]} 38. Re7 {[%clk 0:01:17]}  a5 {[%clk 0:01:55]} 39. Kf3 {[%clk 0:01:17]}  Kf8 {[%clk 0:01:54]} 40. Ra7 {[%clk 0:01:17]}  Nd3 {[%clk 0:01:51]} 41. Rb7 {[%clk 0:01:13]}  Nb4 {[%clk 0:01:45]} 42. Rxb6 {[%clk 0:01:12]}  Kf7 {[%clk 0:01:46]} 43. a4 {[%clk 0:01:10]}  Nd3 {[%clk 0:01:41]} 44. Rb5 {[%clk 0:01:10]} 1-0


[Site "https://www.chess.com"]

[Event "Titled Tuesday Blitz March 01 Early 2022"]
[White "Tymrakiewicz, Rafal"]
[Black "Muradov, Soltan"]
[WhiteFideId "1108832"]
[BlackFideId "14002108"]
[WhiteElo "2205"]
[BlackElo "1854"]
[Result "1/2-1/2"]
[Round "04"]
[TimeControl "180+1"]
[Date "2022.03.01"]
[WhiteClock "0:00:06"]
[BlackClock "0:00:08"]

1. d4 {[%clk 0:03:00]}  Nf6 {[%clk 0:02:59]} 2. Bg5 {[%clk 0:03:00]}  e6 {[%clk 0:02:59]} 3. Nd2 {[%clk 0:02:59]}  d5 {[%clk 0:02:57]} 4. e3 {[%clk 0:02:59]}  Be7 {[%clk 0:02:42]} 5. Bd3 {[%clk 0:02:59]}  b6 {[%clk 0:02:43]} 6. Qe2 {[%clk 0:02:58]}  Bb7 {[%clk 0:02:42]} 7. Bxf6 {[%clk 0:02:58]}  Bxf6 {[%clk 0:02:42]} 8. f4 {[%clk 0:02:59]}  Nc6 {[%clk 0:02:36]} 9. c3 {[%clk 0:02:58]}  g6 {[%clk 0:02:36]} 10. Ngf3 {[%clk 0:02:58]}  Ne7 {[%clk 0:02:34]} 11. Ne5 {[%clk 0:02:45]}  Bg7 {[%clk 0:02:30]} 12. O-O {[%clk 0:02:24]}  f6 {[%clk 0:02:28]} 13. Ng4 {[%clk 0:02:13]}  O-O {[%clk 0:02:25]} 14. Rf3 {[%clk 0:01:58]}  Nf5 {[%clk 0:01:53]} 15. Rh3 {[%clk 0:01:55]}  Qd7 {[%clk 0:01:48]} 16. Nf2 {[%clk 0:01:54]}  Rae8 {[%clk 0:01:48]} 17. g4 {[%clk 0:01:54]}  Nd6 {[%clk 0:01:48]} 18. Nf3 {[%clk 0:01:37]}  e5 {[%clk 0:01:43]} 19. fxe5 {[%clk 0:01:26]}  fxe5 {[%clk 0:01:43]} 20. dxe5 {[%clk 0:01:25]}  Bxe5 {[%clk 0:01:39]} 21. Ng5 {[%clk 0:01:20]}  Re7 {[%clk 0:01:28]} 22. Rf1 {[%clk 0:01:19]}  Bf6 {[%clk 0:01:21]} 23. Nf3 {[%clk 0:01:15]}  Rfe8 {[%clk 0:01:21]} 24. Nd1 {[%clk 0:01:12]}  Nc4 {[%clk 0:01:14]} 25. Bxc4 {[%clk 0:00:49]}  dxc4 {[%clk 0:01:14]} 26. Qxc4+ {[%clk 0:00:49]}  Kh8 {[%clk 0:01:06]} 27. Rg3 {[%clk 0:00:39]}  Be4 {[%clk 0:00:44]} 28. Nd4 {[%clk 0:00:21]}  Bg5 {[%clk 0:00:40]} 29. Nf2 {[%clk 0:00:14]}  Bb7 {[%clk 0:00:36]} 30. e4 {[%clk 0:00:12]}  Bh4 {[%clk 0:00:20]} 31. Re3 {[%clk 0:00:10]}  Bxf2+ {[%clk 0:00:17]} 32. Rxf2 {[%clk 0:00:10]}  Qxg4+ {[%clk 0:00:18]} 33. Rg3 {[%clk 0:00:10]}  Qd1+ {[%clk 0:00:17]} 34. Qf1 {[%clk 0:00:09]}  Qh5 {[%clk 0:00:14]} 35. Rf8+ {[%clk 0:00:09]}  Kg7 {[%clk 0:00:15]} 36. Qf6+ {[%clk 0:00:08]}  Kh6 {[%clk 0:00:15]} 37. Qf4+ {[%clk 0:00:07]}  Kg7 {[%clk 0:00:16]} 38. Qf6+ {[%clk 0:00:07]}  Kh6 {[%clk 0:00:15]} 39. Qf4+ {[%clk 0:00:08]}  Kg7 {[%clk 0:00:08]} 40. Qf6+ {[%clk 0:00:06]} 1/2-1/2


[Site "https://www.chess.com"]

[Event "Titled Tuesday Blitz March 01 Early 2022"]
[White "Urbina Perez, Juan Antonio"]
[Black "Prieto Aranguren, Alain"]
[WhiteFideId "2217368"]
[BlackFideId "2268906"]
[WhiteElo "2192"]
[BlackElo "2235"]
[Result "1-0"]
[Round "04"]
[TimeControl "180+1"]
[Date "2022.03.01"]
[WhiteClock "0:00:16"]
[BlackClock "0:00:03"]

1. e4 {[%clk 0:03:00]}  c6 {[%clk 0:02:13]} 2. d4 {[%clk 0:02:57]}  d5 {[%clk 0:02:14]} 3. Nd2 {[%clk 0:02:57]}  dxe4 {[%clk 0:02:14]} 4. Nxe4 {[%clk 0:02:58]}  Nf6 {[%clk 0:02:15]} 5. Nxf6+ {[%clk 0:02:58]}  gxf6 {[%clk 0:02:15]} 6. g3 {[%clk 0:02:56]}  Qd5 {[%clk 0:02:13]} 7. Nf3 {[%clk 0:02:52]}  Bg4 {[%clk 0:02:11]} 8. Bg2 {[%clk 0:02:53]}  Qe4+ {[%clk 0:02:11]} 9. Qe2 {[%clk 0:02:48]}  Qxe2+ {[%clk 0:02:11]} 10. Kxe2 {[%clk 0:02:49]}  Nd7 {[%clk 0:02:11]} 11. h3 {[%clk 0:02:49]}  Bh5 {[%clk 0:02:11]} 12. Re1 {[%clk 0:02:42]}  e6 {[%clk 0:02:11]} 13. Kf1 {[%clk 0:02:41]}  Bg6 {[%clk 0:02:10]} 14. c3 {[%clk 0:02:41]}  Bd6 {[%clk 0:02:10]} 15. Nh4 {[%clk 0:02:40]}  O-O-O {[%clk 0:02:09]} 16. Nxg6 {[%clk 0:02:38]}  hxg6 {[%clk 0:02:09]} 17. h4 {[%clk 0:02:38]}  Rde8 {[%clk 0:02:06]} 18. Be3 {[%clk 0:02:37]}  Nb6 {[%clk 0:02:06]} 19. b3 {[%clk 0:02:36]}  Nd5 {[%clk 0:02:05]} 20. Bd2 {[%clk 0:02:36]}  f5 {[%clk 0:02:02]} 21. c4 {[%clk 0:02:35]}  Nf6 {[%clk 0:01:58]} 22. Bc3 {[%clk 0:02:32]}  Ng4 {[%clk 0:01:54]} 23. d5 {[%clk 0:02:28]}  e5 {[%clk 0:01:36]} 24. dxc6 {[%clk 0:02:26]}  bxc6 {[%clk 0:01:37]} 25. Bxc6 {[%clk 0:02:27]}  Rd8 {[%clk 0:01:33]} 26. Bf3 {[%clk 0:02:26]}  Rhe8 {[%clk 0:01:21]} 27. Kg2 {[%clk 0:02:14]}  e4 {[%clk 0:01:11]} 28. Be2 {[%clk 0:02:07]}  Bc5 {[%clk 0:01:06]} 29. Bxg4 {[%clk 0:01:58]}  fxg4 {[%clk 0:01:06]} 30. Rad1 {[%clk 0:01:49]}  f5 {[%clk 0:00:58]} 31. b4 {[%clk 0:01:44]}  Bb6 {[%clk 0:00:53]} 32. c5 {[%clk 0:01:44]}  Bc7 {[%clk 0:00:54]} 33. Bf6 {[%clk 0:01:35]}  Rxd1 {[%clk 0:00:48]} 34. Rxd1 {[%clk 0:01:36]}  Re6 {[%clk 0:00:48]} 35. Bg5 {[%clk 0:01:32]}  Ra6 {[%clk 0:00:44]} 36. Rd2 {[%clk 0:01:17]}  Be5 {[%clk 0:00:44]} 37. Bf4 {[%clk 0:01:14]}  Bc3 {[%clk 0:00:41]} 38. Rc2 {[%clk 0:01:02]}  Bxb4 {[%clk 0:00:40]} 39. c6 {[%clk 0:01:02]}  Ba5 {[%clk 0:00:36]} 40. Kf1 {[%clk 0:00:41]}  Bc7 {[%clk 0:00:34]} 41. Be3 {[%clk 0:00:38]}  Bb6 {[%clk 0:00:32]} 42. Bg5 {[%clk 0:00:33]}  Bd8 {[%clk 0:00:32]} 43. Be3 {[%clk 0:00:29]}  Bb6 {[%clk 0:00:32]} 44. Bxb6 {[%clk 0:00:24]}  Rxb6 {[%clk 0:00:28]} 45. h5 {[%clk 0:00:24]}  gxh5 {[%clk 0:00:28]} 46. Rc5 {[%clk 0:00:25]}  Kc7 {[%clk 0:00:24]} 47. Rxf5 {[%clk 0:00:25]}  Kxc6 {[%clk 0:00:23]} 48. Rxh5 {[%clk 0:00:25]}  Rb1+ {[%clk 0:00:24]} 49. Kg2 {[%clk 0:00:24]}  Rb2 {[%clk 0:00:24]} 50. Re5 {[%clk 0:00:24]}  Rxa2 {[%clk 0:00:24]} 51. Rxe4 {[%clk 0:00:24]}  a5 {[%clk 0:00:24]} 52. Rxg4 {[%clk 0:00:24]}  a4 {[%clk 0:00:24]} 53. Rg8 {[%clk 0:00:24]}  a3 {[%clk 0:00:24]} 54. Ra8 {[%clk 0:00:24]}  Kd5 {[%clk 0:00:23]} 55. g4 {[%clk 0:00:23]}  Ke4 {[%clk 0:00:22]} 56. Kg3 {[%clk 0:00:22]}  Ra1 {[%clk 0:00:23]} 57. Ra4+ {[%clk 0:00:22]}  Ke5 {[%clk 0:00:22]} 58. f4+ {[%clk 0:00:20]}  Ke6 {[%clk 0:00:20]} 59. Kh4 {[%clk 0:00:20]}  a2 {[%clk 0:00:19]} 60. Kg5 {[%clk 0:00:20]}  Kf7 {[%clk 0:00:18]} 61. f5 {[%clk 0:00:20]}  Ke7 {[%clk 0:00:18]} 62. Ra7+ {[%clk 0:00:21]}  Ke8 {[%clk 0:00:15]} 63. f6 {[%clk 0:00:21]}  Kd8 {[%clk 0:00:08]} 64. Kg6 {[%clk 0:00:17]}  Rg1 {[%clk 0:00:07]} 65. Rxa2 {[%clk 0:00:17]}  Rxg4+ {[%clk 0:00:07]} 66. Kf7 {[%clk 0:00:18]}  Kd7 {[%clk 0:00:07]} 67. Rd2+ {[%clk 0:00:18]}  Kc6 {[%clk 0:00:06]} 68. Ke6 {[%clk 0:00:17]}  Re4+ {[%clk 0:00:06]} 69. Kf5 {[%clk 0:00:17]}  Re1 {[%clk 0:00:04]} 70. f7 {[%clk 0:00:17]}  Rf1+ {[%clk 0:00:03]} 71. Ke6 {[%clk 0:00:17]}  Re1+ {[%clk 0:00:03]} 72. Kf6 {[%clk 0:00:17]}  Rf1+ {[%clk 0:00:04]} 73. Kg7 {[%clk 0:00:17]}  Rg1+ {[%clk 0:00:04]} 74. Kf8 {[%clk 0:00:17]}  Rg2 {[%clk 0:00:03]} 75. Rxg2 {[%clk 0:00:16]} 1-0


[Site "https://www.chess.com"]